[Event "Late-Titled-Tuesday-Blitz-March-19-2024"]
[Site "Chess.com"]
[Date "2024.03.19"]
[Round "7"]
[White "PNEPaul"]
[Black "McCarthyStone"]
[Result "0-1"]
[WhiteElo "1983"]
[BlackElo "2358"]
[TimeControl "180+1"]
[EndTime "15:13:38 PDT"]
[Termination "McCarthyStone won by resignation"]

1. e4 {[%clk 0:03:00.9]} 1... c5 {[%clk 0:02:56.9]} 2. Nf3 {[%clk 0:03:00.8]}
2... d6 {[%clk 0:02:56.9]} 3. d4 {[%clk 0:03:01.2]} 3... cxd4 {[%clk 0:02:57.8]}
4. c3 {[%clk 0:03:01.6]} 4... Nf6 {[%clk 0:02:53.7]} 5. Bd3 {[%clk 0:03:00.7]}
5... dxc3 {[%clk 0:02:53.6]} 6. Nxc3 {[%clk 0:03:00.8]} 6... e6 {[%clk
0:02:53.9]} 7. O-O {[%clk 0:02:59.8]} 7... Be7 {[%clk 0:02:54.4]} 8. Qe2 {[%clk
0:02:59.3]} 8... Nc6 {[%clk 0:02:53.4]} 9. Bf4 {[%clk 0:02:58.5]} 9... e5 {[%clk
0:02:52.8]} 10. Be3 {[%clk 0:02:58.2]} 10... O-O {[%clk 0:02:52.3]} 11. h3
{[%clk 0:02:58.4]} 11... Be6 {[%clk 0:02:51.8]} 12. Ng5 {[%clk 0:02:58.3]} 12...
d5 {[%clk 0:02:49.7]} 13. Nxe6 {[%clk 0:02:56.2]} 13... fxe6 {[%clk 0:02:50.6]}
14. exd5 {[%clk 0:02:56]} 14... exd5 {[%clk 0:02:49]} 15. Bg5 {[%clk 0:02:53.9]}
15... e4 {[%clk 0:02:46.9]} 16. Bb5 {[%clk 0:02:30.6]} 16... Nd4 {[%clk
0:02:21]} 17. Qd1 {[%clk 0:02:29.4]} 17... Nxb5 {[%clk 0:02:17.2]} 18. Nxb5
{[%clk 0:02:28.5]} 18... Qd7 {[%clk 0:02:12.1]} 19. Nd4 {[%clk 0:02:24]} 19...
Rac8 {[%clk 0:02:07.6]} 20. Be3 {[%clk 0:02:22.3]} 20... a6 {[%clk 0:02:04.5]}
21. Qb3 {[%clk 0:02:21]} 21... Kh8 {[%clk 0:01:56.8]} 22. Rad1 {[%clk
0:02:20.2]} 22... Bd6 {[%clk 0:01:46.8]} 23. Ne2 {[%clk 0:02:18.2]} 23... Bb8
{[%clk 0:01:45.4]} 24. Rfe1 {[%clk 0:02:06.2]} 24... b5 {[%clk 0:01:27.7]} 25.
Nf4 {[%clk 0:01:33.7]} 25... Rc4 {[%clk 0:01:19.5]} 26. Rd4 {[%clk 0:01:07.6]}
26... Rxd4 {[%clk 0:01:18.5]} 27. Bxd4 {[%clk 0:01:07.3]} 27... Bxf4 {[%clk
0:01:18.7]} 0-1

[Event "Late-Titled-Tuesday-Blitz-March-19-2024"]
[Site "Chess.com"]
[Date "2024.03.19"]
[Round "7"]
[White "xxysoul6"]
[Black "FabianoCaruana"]
[Result "1-0"]
[WhiteElo "2982"]
[BlackElo "3070"]
[TimeControl "180+1"]
[EndTime "15:13:46 PDT"]
[Termination "xxysoul6 won by resignation"]

1. d4 {[%clk 0:03:00.9]} 1... Nf6 {[%clk 0:02:58.7]} 2. Nf3 {[%clk 0:03:01.5]}
2... e6 {[%clk 0:02:58.2]} 3. c3 {[%clk 0:03:01.3]} 3... b6 {[%clk 0:02:57.6]}
4. Bf4 {[%clk 0:02:58.3]} 4... Bb7 {[%clk 0:02:54.9]} 5. Nbd2 {[%clk 0:02:58.7]}
5... Nh5 {[%clk 0:02:53.5]} 6. Bg5 {[%clk 0:02:54.4]} 6... Be7 {[%clk
0:02:53.6]} 7. Bxe7 {[%clk 0:02:50.1]} 7... Qxe7 {[%clk 0:02:54.5]} 8. a4 {[%clk
0:02:41.2]} 8... a5 {[%clk 0:02:36.3]} 9. g3 {[%clk 0:02:40.8]} 9... O-O {[%clk
0:02:34.6]} 10. Bg2 {[%clk 0:02:41.2]} 10... f5 {[%clk 0:02:30.7]} 11. O-O
{[%clk 0:02:40.2]} 11... Nf6 {[%clk 0:02:29.8]} 12. Qc2 {[%clk 0:02:33.8]} 12...
d6 {[%clk 0:02:29]} 13. Ne1 {[%clk 0:02:30.9]} 13... Bxg2 {[%clk 0:02:27.5]} 14.
Nxg2 {[%clk 0:02:31.8]} 14... Nbd7 {[%clk 0:02:15]} 15. e4 {[%clk 0:02:32.3]}
15... fxe4 {[%clk 0:02:14.8]} 16. Nxe4 {[%clk 0:02:33.2]} 16... Nxe4 {[%clk
0:02:12.4]} 17. Qxe4 {[%clk 0:02:34.1]} 17... e5 {[%clk 0:02:05.5]} 18. Rae1
{[%clk 0:02:19]} 18... Qf7 {[%clk 0:02:03]} 19. Qc6 {[%clk 0:02:13.2]} 19...
Rac8 {[%clk 0:01:53.9]} 20. Re3 {[%clk 0:02:03.9]} 20... exd4 {[%clk 0:01:49.3]}
21. cxd4 {[%clk 0:02:04.8]} 21... Nf6 {[%clk 0:01:42.3]} 22. Nf4 {[%clk
0:02:03.1]} 22... Rce8 {[%clk 0:01:41.5]} 23. Rfe1 {[%clk 0:02:01.3]} 23... Rxe3
{[%clk 0:01:35.2]} 24. Rxe3 {[%clk 0:02:02.2]} 24... Re8 {[%clk 0:01:05.5]} 25.
Rxe8+ {[%clk 0:01:47.9]} 25... Nxe8 {[%clk 0:01:06.4]} 26. d5 {[%clk 0:01:43.7]}
26... Nf6 {[%clk 0:00:43]} 27. Ne6 {[%clk 0:01:39.2]} 27... Ng4 {[%clk
0:00:39.7]} 28. Qa8+ {[%clk 0:01:38.1]} 1-0

[Event "Late-Titled-Tuesday-Blitz-March-19-2024"]
[Site "Chess.com"]
[Date "2024.03.19"]
[Round "7"]
[White "mightysmasher"]
[Black "NoSpaghettiForYou"]
[Result "1-0"]
[WhiteElo "2594"]
[BlackElo "2437"]
[TimeControl "180+1"]
[EndTime "15:13:54 PDT"]
[Termination "mightysmasher won by resignation"]

1. e4 {[%clk 0:03:00.9]} 1... c5 {[%clk 0:02:59.6]} 2. c3 {[%clk 0:03:00.8]}
2... Nf6 {[%clk 0:02:58.9]} 3. e5 {[%clk 0:03:00.7]} 3... Nd5 {[%clk 0:02:59.5]}
4. d4 {[%clk 0:03:01.6]} 4... cxd4 {[%clk 0:02:59.5]} 5. cxd4 {[%clk 0:03:02.5]}
5... e6 {[%clk 0:02:59.5]} 6. Nf3 {[%clk 0:03:02.6]} 6... d6 {[%clk 0:02:59.4]}
7. Bc4 {[%clk 0:03:02.5]} 7... dxe5 {[%clk 0:02:58.9]} 8. dxe5 {[%clk
0:03:01.9]} 8... Bb4+ {[%clk 0:02:59]} 9. Bd2 {[%clk 0:03:01.1]} 9... Bxd2+
{[%clk 0:02:58.3]} 10. Qxd2 {[%clk 0:03:00.9]} 10... O-O {[%clk 0:02:52.2]} 11.
O-O {[%clk 0:03:00]} 11... Nb6 {[%clk 0:02:34.8]} 12. Bb3 {[%clk 0:02:56.1]}
12... Bd7 {[%clk 0:02:31.1]} 13. Nc3 {[%clk 0:02:55]} 13... Bc6 {[%clk
0:02:30.1]} 14. Nd4 {[%clk 0:02:52.1]} 14... Qe7 {[%clk 0:02:24.4]} 15. Rad1
{[%clk 0:02:49.1]} 15... Na6 {[%clk 0:02:05.1]} 16. Nxc6 {[%clk 0:02:45.4]}
16... bxc6 {[%clk 0:02:06]} 17. Bc2 {[%clk 0:02:45.4]} 17... Nb4 {[%clk
0:02:04.8]} 18. Bb1 {[%clk 0:02:42.4]} 18... Rfd8 {[%clk 0:01:59.2]} 19. Qe2
{[%clk 0:02:41.2]} 19... a5 {[%clk 0:01:51.7]} 20. a3 {[%clk 0:02:30.1]} 20...
N4d5 {[%clk 0:01:51.5]} 21. Ne4 {[%clk 0:02:29.4]} 21... Nf4 {[%clk 0:01:48.1]}
22. Qf3 {[%clk 0:02:26.4]} 22... Ng6 {[%clk 0:01:45.2]} 23. Nd6 {[%clk
0:02:25.1]} 23... Nxe5 {[%clk 0:01:40.8]} 24. Bxh7+ {[%clk 0:02:03.8]} 24...
Kxh7 {[%clk 0:01:40.7]} 25. Qh5+ {[%clk 0:02:02.9]} 25... Kg8 {[%clk 0:01:41.2]}
26. Qxe5 {[%clk 0:02:02.9]} 26... Nd5 {[%clk 0:01:26.4]} 27. Nc4 {[%clk
0:01:54.9]} 27... a4 {[%clk 0:01:26.5]} 28. Rfe1 {[%clk 0:01:53.4]} 28... Rab8
{[%clk 0:01:13.8]} 29. h3 {[%clk 0:01:43.5]} 29... Nf6 {[%clk 0:01:01.7]} 30.
Nd6 {[%clk 0:01:34.4]} 30... Nd5 {[%clk 0:00:59.4]} 31. Ne4 {[%clk 0:01:28.5]}
31... Rxb2 {[%clk 0:00:55.4]} 32. Qxb2 {[%clk 0:01:26.6]} 1-0

[Event "Late-Titled-Tuesday-Blitz-March-19-2024"]
[Site "Chess.com"]
[Date "2024.03.19"]
[Round "7"]
[White "Slovak_fighter2000"]
[Black "rychessmaster1"]
[Result "0-1"]
[WhiteElo "2581"]
[BlackElo "2752"]
[TimeControl "180+1"]
[EndTime "15:13:57 PDT"]
[Termination "rychessmaster1 won by resignation"]

1. c4 {[%clk 0:02:59.8]} 1... e6 {[%clk 0:02:58.3]} 2. Nf3 {[%clk 0:02:55.2]}
2... d5 {[%clk 0:02:58.3]} 3. d4 {[%clk 0:02:53.5]} 3... Nf6 {[%clk 0:02:57.7]}
4. Nc3 {[%clk 0:02:52]} 4... Bb4 {[%clk 0:02:57.8]} 5. cxd5 {[%clk 0:02:46.2]}
5... exd5 {[%clk 0:02:58.1]} 6. Bg5 {[%clk 0:02:43.4]} 6... h6 {[%clk 0:02:58]}
7. Bxf6 {[%clk 0:02:42.9]} 7... Qxf6 {[%clk 0:02:58.9]} 8. e3 {[%clk 0:02:40.2]}
8... O-O {[%clk 0:02:57.6]} 9. Be2 {[%clk 0:02:40.1]} 9... c6 {[%clk 0:02:54.8]}
10. Rc1 {[%clk 0:02:37.6]} 10... Nd7 {[%clk 0:02:48.2]} 11. a3 {[%clk
0:02:37.8]} 11... Bd6 {[%clk 0:02:48.1]} 12. O-O {[%clk 0:02:36.1]} 12... Re8
{[%clk 0:02:26.6]} 13. b4 {[%clk 0:02:32.9]} 13... a5 {[%clk 0:02:26.9]} 14. Qb3
{[%clk 0:02:31.7]} 14... axb4 {[%clk 0:02:27]} 15. axb4 {[%clk 0:02:31.4]} 15...
b5 {[%clk 0:02:20.7]} 16. Ra1 {[%clk 0:02:30.2]} 16... Bb7 {[%clk 0:02:16.9]}
17. Qb2 {[%clk 0:02:27.1]} 17... Nb6 {[%clk 0:02:14.2]} 18. Rxa8 {[%clk
0:02:24.7]} 18... Rxa8 {[%clk 0:02:15.1]} 19. Rb1 {[%clk 0:02:16]} 19... Bc8
{[%clk 0:02:05.9]} 20. g3 {[%clk 0:01:59]} 20... Bf5 {[%clk 0:02:00.5]} 21. Rc1
{[%clk 0:01:57.1]} 21... Qe7 {[%clk 0:01:51.5]} 22. Nb1 {[%clk 0:01:43.5]} 22...
Nc4 {[%clk 0:01:33.3]} 23. Bxc4 {[%clk 0:01:43.3]} 23... bxc4 {[%clk 0:01:34.1]}
24. Nc3 {[%clk 0:01:38.9]} 24... Bxb4 {[%clk 0:01:31.9]} 25. Ra1 {[%clk
0:01:34.9]} 25... Rxa1+ {[%clk 0:01:21.9]} 26. Qxa1 {[%clk 0:01:35.8]} 26... Qb7
{[%clk 0:01:01.7]} 27. Kg2 {[%clk 0:01:32.4]} 27... Bxc3 {[%clk 0:00:59.6]} 28.
Qxc3 {[%clk 0:01:32.3]} 28... Be4 {[%clk 0:01:00.4]} 29. g4 {[%clk 0:01:28.2]}
29... Qb3 {[%clk 0:00:54.5]} 30. Qa5 {[%clk 0:01:25.2]} 30... Qd1 {[%clk
0:00:54.4]} 0-1

[Event "Late-Titled-Tuesday-Blitz-March-19-2024"]
[Site "Chess.com"]
[Date "2024.03.19"]
[Round "7"]
[White "CheckThis4"]
[Black "ninguno46"]
[Result "1-0"]
[WhiteElo "2678"]
[BlackElo "2539"]
[TimeControl "180+1"]
[EndTime "15:14:23 PDT"]
[Termination "CheckThis4 won on time"]

1. e4 {[%clk 0:03:00.9]} 1... c5 {[%clk 0:02:58.4]} 2. Nf3 {[%clk 0:03:00.5]}
2... Nc6 {[%clk 0:02:57.7]} 3. d4 {[%clk 0:03:00.1]} 3... cxd4 {[%clk
0:02:57.6]} 4. Nxd4 {[%clk 0:03:01]} 4... g6 {[%clk 0:02:57.5]} 5. Nc3 {[%clk
0:02:59.1]} 5... Bg7 {[%clk 0:02:57]} 6. Be3 {[%clk 0:02:59.1]} 6... Nf6 {[%clk
0:02:56.7]} 7. Bc4 {[%clk 0:02:58]} 7... Qa5 {[%clk 0:02:56.7]} 8. O-O {[%clk
0:02:54.9]} 8... O-O {[%clk 0:02:56.6]} 9. Bb3 {[%clk 0:02:52.1]} 9... d6 {[%clk
0:02:56.1]} 10. h3 {[%clk 0:02:51.2]} 10... Bd7 {[%clk 0:02:55.6]} 11. Nde2
{[%clk 0:02:35.8]} 11... b5 {[%clk 0:02:30.1]} 12. Ng3 {[%clk 0:02:23.8]} 12...
Rac8 {[%clk 0:02:00.9]} 13. Qd2 {[%clk 0:02:23.1]} 13... Rfe8 {[%clk 0:01:43.5]}
14. Bh6 {[%clk 0:02:19.3]} 14... b4 {[%clk 0:01:23.5]} 15. Nd5 {[%clk
0:02:13.6]} 15... Nxd5 {[%clk 0:01:16.8]} 16. exd5 {[%clk 0:02:05.5]} 16... Bxh6
{[%clk 0:01:13.2]} 17. Qxh6 {[%clk 0:02:02.6]} 17... Nd4 {[%clk 0:01:07.3]} 18.
Rad1 {[%clk 0:01:53.4]} 18... Nxb3 {[%clk 0:00:57.9]} 19. cxb3 {[%clk
0:01:53.1]} 19... Rc2 {[%clk 0:00:23.5]} 20. Rd4 {[%clk 0:01:44.7]} 20... e5
{[%clk 0:00:05.7]} 21. Rh4 {[%clk 0:01:31.9]} 21... Qxd5 {[%clk 0:00:01.1]} 22.
Ne4 {[%clk 0:01:26.6]} 1-0

[Event "Late-Titled-Tuesday-Blitz-March-19-2024"]
[Site "Chess.com"]
[Date "2024.03.19"]
[Round "7"]
[White "grandcoach"]
[Black "Der_Balak_3Halak"]
[Result "0-1"]
[WhiteElo "2243"]
[BlackElo "2416"]
[TimeControl "180+1"]
[EndTime "15:14:24 PDT"]
[Termination "Der_Balak_3Halak won on time"]

1. e4 {[%clk 0:03:00.9]} 1... g6 {[%clk 0:03:00.9]} 2. d4 {[%clk 0:02:59.8]}
2... Bg7 {[%clk 0:03:01.2]} 3. Nc3 {[%clk 0:03:00.1]} 3... c5 {[%clk 0:03:01.7]}
4. dxc5 {[%clk 0:02:58.8]} 4... Qa5 {[%clk 0:03:00.6]} 5. Bd2 {[%clk 0:02:56.7]}
5... Qxc5 {[%clk 0:03:00.6]} 6. Nd5 {[%clk 0:02:47.6]} 6... e6 {[%clk
0:02:52.7]} 7. Bb4 {[%clk 0:02:43.8]} 7... Qc6 {[%clk 0:02:46.1]} 8. Bb5 {[%clk
0:02:42.7]} 8... exd5 {[%clk 0:02:42.9]} 9. Bxc6 {[%clk 0:02:41.7]} 9... Nxc6
{[%clk 0:02:43.8]} 10. Bc3 {[%clk 0:02:38]} 10... d4 {[%clk 0:02:40.9]} 11. Bd2
{[%clk 0:02:35.9]} 11... Nf6 {[%clk 0:02:40.6]} 12. Qe2 {[%clk 0:02:24]} 12...
O-O {[%clk 0:02:39.4]} 13. Bg5 {[%clk 0:02:12.9]} 13... Re8 {[%clk 0:02:32.3]}
14. Bxf6 {[%clk 0:02:12.4]} 14... Bxf6 {[%clk 0:02:33.2]} 15. Nf3 {[%clk
0:02:06.7]} 15... d5 {[%clk 0:02:32.5]} 16. e5 {[%clk 0:02:03.7]} 16... Nxe5
{[%clk 0:02:31.6]} 17. O-O-O {[%clk 0:01:51.8]} 17... Bf5 {[%clk 0:02:27.2]} 18.
Nxe5 {[%clk 0:01:50.6]} 18... Bxe5 {[%clk 0:02:17.6]} 19. Kb1 {[%clk 0:01:13.9]}
19... Rac8 {[%clk 0:02:10.5]} 20. Rc1 {[%clk 0:00:53.9]} 20... Bf4 {[%clk
0:02:00.6]} 21. Qf3 {[%clk 0:00:49.4]} 21... Bxc1 {[%clk 0:01:55.2]} 22. Rxc1
{[%clk 0:00:50.3]} 22... Be4 {[%clk 0:01:52.8]} 23. Qg3 {[%clk 0:00:43.7]} 23...
Rc6 {[%clk 0:01:50.5]} 24. f3 {[%clk 0:00:22.1]} 24... Bf5 {[%clk 0:01:47.4]}
25. Re1 {[%clk 0:00:09.4]} 25... Rec8 {[%clk 0:01:44.2]} 26. Ka1 {[%clk
0:00:06.9]} 26... Rxc2 {[%clk 0:01:44.1]} 27. a3 {[%clk 0:00:04.4]} 27... d3
{[%clk 0:01:44.4]} 0-1

[Event "Late-Titled-Tuesday-Blitz-March-19-2024"]
[Site "Chess.com"]
[Date "2024.03.19"]
[Round "7"]
[White "Boundless_Strike"]
[Black "DucksParadise"]
[Result "1-0"]
[WhiteElo "2633"]
[BlackElo "2495"]
[TimeControl "180+1"]
[EndTime "15:14:29 PDT"]
[Termination "Boundless_Strike won by checkmate"]

1. d4 {[%clk 0:03:00.9]} 1... Nf6 {[%clk 0:02:58.6]} 2. Nc3 {[%clk 0:03:01.6]}
2... d5 {[%clk 0:02:58.1]} 3. e4 {[%clk 0:03:02.3]} 3... Nxe4 {[%clk 0:02:57.3]}
4. Nxe4 {[%clk 0:03:02.8]} 4... dxe4 {[%clk 0:02:58.2]} 5. Be3 {[%clk
0:03:03.5]} 5... e6 {[%clk 0:02:47.9]} 6. f3 {[%clk 0:03:03.5]} 6... Nd7 {[%clk
0:02:34.3]} 7. fxe4 {[%clk 0:02:43.3]} 7... Qh4+ {[%clk 0:02:33.2]} 8. Bf2
{[%clk 0:02:44]} 8... Qxe4+ {[%clk 0:02:32.8]} 9. Be2 {[%clk 0:02:44.7]} 9... c5
{[%clk 0:02:11.3]} 10. Nf3 {[%clk 0:02:42.6]} 10... cxd4 {[%clk 0:02:11.3]} 11.
O-O {[%clk 0:02:42.8]} 11... Bc5 {[%clk 0:02:09.7]} 12. Qd2 {[%clk 0:02:30.5]}
12... O-O {[%clk 0:02:08]} 13. Ng5 {[%clk 0:02:30]} 13... Qd5 {[%clk 0:01:56.4]}
14. Bf3 {[%clk 0:02:28.6]} 14... Qd6 {[%clk 0:01:51.5]} 15. Kh1 {[%clk
0:02:27.6]} 15... Nf6 {[%clk 0:01:47.4]} 16. Rae1 {[%clk 0:02:22]} 16... Bb4
{[%clk 0:01:38.6]} 17. c3 {[%clk 0:02:21.2]} 17... dxc3 {[%clk 0:01:39.5]} 18.
Qc2 {[%clk 0:02:21.1]} 18... h6 {[%clk 0:01:23.6]} 19. Rd1 {[%clk 0:02:16.7]}
19... Qc7 {[%clk 0:01:19.1]} 20. Bg3 {[%clk 0:02:04.5]} 20... Qc4 {[%clk
0:01:09.7]} 21. b3 {[%clk 0:02:00.4]} 21... Qb5 {[%clk 0:00:55.8]} 22. Ne4
{[%clk 0:01:46.5]} 22... Nxe4 {[%clk 0:00:54.8]} 23. Bxe4 {[%clk 0:01:47.2]}
23... f5 {[%clk 0:00:49.9]} 24. Bd3 {[%clk 0:01:47.3]} 24... Qb6 {[%clk
0:00:43.8]} 25. Be5 {[%clk 0:01:45.5]} 25... Bd7 {[%clk 0:00:32.6]} 26. Bc4
{[%clk 0:01:46]} 26... Rf7 {[%clk 0:00:14]} 27. Rxf5 {[%clk 0:01:43.5]} 27...
Rxf5 {[%clk 0:00:09.2]} 28. Qxf5 {[%clk 0:01:41.6]} 28... Kh8 {[%clk 0:00:07]}
29. Qg6 {[%clk 0:01:40.4]} 29... Be8 {[%clk 0:00:06.9]} 30. Qxg7# {[%clk
0:01:40.3]} 1-0

[Event "Late-Titled-Tuesday-Blitz-March-19-2024"]
[Site "Chess.com"]
[Date "2024.03.19"]
[Round "7"]
[White "Matrix3x3a"]
[Black "kleber2007"]
[Result "1-0"]
[WhiteElo "2613"]
[BlackElo "2487"]
[TimeControl "180+1"]
[EndTime "15:14:37 PDT"]
[Termination "Matrix3x3a won on time"]

1. d4 {[%clk 0:03:00.9]} 1... Nf6 {[%clk 0:02:59]} 2. c4 {[%clk 0:03:00.1]} 2...
g6 {[%clk 0:02:59.4]} 3. Nc3 {[%clk 0:02:59]} 3... d5 {[%clk 0:02:59.5]} 4. Nf3
{[%clk 0:02:58.6]} 4... Bg7 {[%clk 0:02:59]} 5. Qb3 {[%clk 0:02:57.4]} 5... dxc4
{[%clk 0:02:58.3]} 6. Qxc4 {[%clk 0:02:57.3]} 6... O-O {[%clk 0:02:58.8]} 7. e4
{[%clk 0:02:56.9]} 7... Be6 {[%clk 0:02:53.9]} 8. d5 {[%clk 0:02:51.1]} 8... Bc8
{[%clk 0:02:53]} 9. e5 {[%clk 0:02:50.9]} 9... Ne8 {[%clk 0:02:42.3]} 10. h4
{[%clk 0:02:46.4]} 10... c6 {[%clk 0:02:37.8]} 11. h5 {[%clk 0:02:40.3]} 11...
e6 {[%clk 0:02:19.6]} 12. d6 {[%clk 0:02:33.1]} 12... Nd7 {[%clk 0:02:08.7]} 13.
Bg5 {[%clk 0:02:14.3]} 13... Nxe5 {[%clk 0:01:41.3]} 14. Qh4 {[%clk 0:02:04.9]}
14... Nxf3+ {[%clk 0:01:39.9]} 15. gxf3 {[%clk 0:02:04.1]} 15... Qa5 {[%clk
0:01:31.3]} 16. hxg6 {[%clk 0:01:59.4]} 16... Bxc3+ {[%clk 0:00:57.3]} 17. bxc3
{[%clk 0:01:56.8]} 17... Qxc3+ {[%clk 0:00:57.8]} 18. Ke2 {[%clk 0:01:56.4]}
18... Qb2+ {[%clk 0:00:55]} 19. Ke3 {[%clk 0:01:50]} 19... Qe5+ {[%clk
0:00:42.3]} 20. Kd3 {[%clk 0:01:44.1]} 20... Qxd6+ {[%clk 0:00:20.6]} 21. Kc4
{[%clk 0:01:42]} 21... b5+ {[%clk 0:00:17.5]} 22. Kb3 {[%clk 0:01:34.9]} 22...
Qd5+ {[%clk 0:00:16.6]} 23. Kc2 {[%clk 0:01:30.3]} 23... Qc5+ {[%clk 0:00:14.7]}
24. Kd2 {[%clk 0:01:19.9]} 24... Qd5+ {[%clk 0:00:13]} 25. Bd3 {[%clk
0:01:19.1]} 1-0

[Event "Late-Titled-Tuesday-Blitz-March-19-2024"]
[Site "Chess.com"]
[Date "2024.03.19"]
[Round "7"]
[White "BabageldiAnnaberdiyev"]
[Black "secretsuperstar7"]
[Result "1-0"]
[WhiteElo "2631"]
[BlackElo "2492"]
[TimeControl "180+1"]
[EndTime "15:14:38 PDT"]
[Termination "BabageldiAnnaberdiyev won by resignation"]

1. e4 {[%clk 0:02:58.7]} 1... c5 {[%clk 0:02:58.3]} 2. Nf3 {[%clk 0:02:58.1]}
2... d6 {[%clk 0:02:58]} 3. d4 {[%clk 0:02:58.5]} 3... cxd4 {[%clk 0:02:58.4]}
4. Nxd4 {[%clk 0:02:59.4]} 4... Nf6 {[%clk 0:02:58.8]} 5. Nc3 {[%clk 0:02:59.9]}
5... Nc6 {[%clk 0:02:59.2]} 6. Bc4 {[%clk 0:02:58.3]} 6... e6 {[%clk 0:02:59.3]}
7. Bb3 {[%clk 0:02:58.6]} 7... Be7 {[%clk 0:02:57.7]} 8. O-O {[%clk 0:02:58.6]}
8... O-O {[%clk 0:02:57.9]} 9. Kh1 {[%clk 0:02:59.1]} 9... a6 {[%clk 0:02:57.1]}
10. f4 {[%clk 0:02:59.2]} 10... Qc7 {[%clk 0:02:57.5]} 11. f5 {[%clk 0:02:59.1]}
11... e5 {[%clk 0:02:56]} 12. Nde2 {[%clk 0:02:58.6]} 12... b5 {[%clk
0:02:55.5]} 13. Bg5 {[%clk 0:02:56.2]} 13... Bb7 {[%clk 0:02:50.8]} 14. Bxf6
{[%clk 0:02:55]} 14... Bxf6 {[%clk 0:02:51.7]} 15. Nd5 {[%clk 0:02:55.1]} 15...
Qd8 {[%clk 0:02:52.3]} 16. c3 {[%clk 0:02:55.6]} 16... Na5 {[%clk 0:02:51.9]}
17. Ng3 {[%clk 0:02:51.5]} 17... Bxd5 {[%clk 0:02:42]} 18. Bxd5 {[%clk
0:02:50.5]} 18... Rc8 {[%clk 0:02:41.7]} 19. a4 {[%clk 0:02:48.9]} 19... Nc4
{[%clk 0:02:35.5]} 20. axb5 {[%clk 0:02:28.1]} 20... Ne3 {[%clk 0:02:34.9]} 21.
Qd3 {[%clk 0:02:26.5]} 21... Nxf1 {[%clk 0:02:34.8]} 22. Rxf1 {[%clk 0:02:26.8]}
22... axb5 {[%clk 0:02:35]} 23. Qxb5 {[%clk 0:02:27.2]} 23... Rb8 {[%clk
0:02:34.3]} 24. Qe2 {[%clk 0:02:27.8]} 24... Qb6 {[%clk 0:02:34.1]} 25. b3
{[%clk 0:01:59.3]} 25... Qc5 {[%clk 0:02:30.2]} 26. Rf3 {[%clk 0:01:56.7]} 26...
Qa3 {[%clk 0:02:08.7]} 27. h3 {[%clk 0:01:49.5]} 27... Qc1+ {[%clk 0:02:03.5]}
28. Kh2 {[%clk 0:01:48.9]} 28... Bg5 {[%clk 0:02:03.8]} 29. Nf1 {[%clk 0:01:43]}
29... Rbc8 {[%clk 0:01:58.4]} 30. Qd3 {[%clk 0:01:32.7]} 30... Rc7 {[%clk
0:01:43]} 31. g3 {[%clk 0:01:29.7]} 31... Ra7 {[%clk 0:01:34]} 32. h4 {[%clk
0:01:29.9]} 32... Ra2+ {[%clk 0:01:32.6]} 33. Kh3 {[%clk 0:01:30.1]} 33... Bf6
{[%clk 0:01:28.4]} 34. b4 {[%clk 0:01:27.4]} 34... h5 {[%clk 0:01:25.2]} 35.
Bxa2 {[%clk 0:01:26.5]} 35... Ra8 {[%clk 0:01:21.1]} 36. Bxf7+ {[%clk
0:01:23.3]} 36... Kf8 {[%clk 0:01:12.3]} 37. Bxh5 {[%clk 0:01:18]} 37... Ke7
{[%clk 0:01:11.3]} 38. Qd5 {[%clk 0:01:16.8]} 38... Ra1 {[%clk 0:01:05.1]} 39.
Qe6+ {[%clk 0:01:15]} 39... Kd8 {[%clk 0:01:04]} 40. Qxd6+ {[%clk 0:01:15.5]}
40... Kc8 {[%clk 0:01:04.4]} 41. Qc6+ {[%clk 0:01:12.5]} 41... Kb8 {[%clk
0:01:04.7]} 42. Qb6+ {[%clk 0:01:07.3]} 42... Kc8 {[%clk 0:01:04.8]} 43. Bf7
{[%clk 0:01:04]} 1-0

[Event "Late-Titled-Tuesday-Blitz-March-19-2024"]
[Site "Chess.com"]
[Date "2024.03.19"]
[Round "7"]
[White "Narek_Ghimoyan"]
[Black "KnightmareJoker"]
[Result "1-0"]
[WhiteElo "2457"]
[BlackElo "2308"]
[TimeControl "180+1"]
[EndTime "15:14:39 PDT"]
[Termination "Narek_Ghimoyan won by resignation"]

1. d4 {[%clk 0:03:00.9]} 1... d5 {[%clk 0:03:00.2]} 2. c4 {[%clk 0:03:00.2]}
2... e6 {[%clk 0:03:00.5]} 3. Nf3 {[%clk 0:03:00.5]} 3... Nf6 {[%clk 0:03:01.2]}
4. Nc3 {[%clk 0:03:00.1]} 4... Be7 {[%clk 0:03:01.9]} 5. Bf4 {[%clk 0:03:00]}
5... O-O {[%clk 0:03:02.6]} 6. e3 {[%clk 0:03:00.4]} 6... dxc4 {[%clk
0:03:02.1]} 7. Bxc4 {[%clk 0:03:00.1]} 7... a6 {[%clk 0:03:02.1]} 8. O-O {[%clk
0:02:58.9]} 8... b5 {[%clk 0:03:02.7]} 9. Bd3 {[%clk 0:02:58.9]} 9... Bb7 {[%clk
0:03:03.3]} 10. Qe2 {[%clk 0:02:58.7]} 10... Nc6 {[%clk 0:03:02.7]} 11. Rfd1
{[%clk 0:02:57.9]} 11... Nb4 {[%clk 0:03:02.2]} 12. Bb1 {[%clk 0:02:55.6]} 12...
Nbd5 {[%clk 0:02:59.8]} 13. Bg3 {[%clk 0:02:56.1]} 13... b4 {[%clk 0:02:58.4]}
14. Nxd5 {[%clk 0:02:54.9]} 14... Qxd5 {[%clk 0:02:54.7]} 15. Bxc7 {[%clk
0:02:52.1]} 15... Rac8 {[%clk 0:02:47]} 16. Bg3 {[%clk 0:02:51.7]} 16... Ne4
{[%clk 0:02:27.8]} 17. Bd3 {[%clk 0:02:49]} 17... Ng5 {[%clk 0:02:22.7]} 18. Ne1
{[%clk 0:02:37.7]} 18... Nh3+ {[%clk 0:01:56.7]} 19. Kf1 {[%clk 0:02:37.6]}
19... h5 {[%clk 0:01:57.3]} 20. e4 {[%clk 0:02:36.4]} 20... Qg5 {[%clk 0:01:51]}
21. gxh3 {[%clk 0:02:33.1]} 21... h4 {[%clk 0:01:51.6]} 22. Nf3 {[%clk
0:02:23.6]} 22... Qh6 {[%clk 0:01:38.9]} 23. Qe3 {[%clk 0:01:58.8]} 23... hxg3
{[%clk 0:01:36.7]} 24. Qxh6 {[%clk 0:01:57.3]} 24... gxh2 {[%clk 0:01:11.4]} 25.
Qh5 {[%clk 0:01:34.5]} 25... h1=Q+ {[%clk 0:01:11.1]} 26. Ke2 {[%clk 0:01:34.3]}
26... g6 {[%clk 0:01:07.1]} 27. Qg4 {[%clk 0:01:33.9]} 27... Qxd1+ {[%clk
0:00:58.7]} 28. Rxd1 {[%clk 0:01:34.8]} 28... Bf6 {[%clk 0:00:50]} 29. e5 {[%clk
0:01:31.5]} 29... Bg7 {[%clk 0:00:50.2]} 30. Be4 {[%clk 0:01:31.7]} 30... Bxe4
{[%clk 0:00:43.7]} 31. Qxe4 {[%clk 0:01:32.6]} 31... Rc7 {[%clk 0:00:42.9]} 32.
h4 {[%clk 0:01:31.7]} 32... Rfc8 {[%clk 0:00:43]} 33. h5 {[%clk 0:01:31.7]}
33... Rc2+ {[%clk 0:00:43.6]} 34. Rd2 {[%clk 0:01:31.4]} 34... Rc1 {[%clk
0:00:38.8]} 35. hxg6 {[%clk 0:01:30.8]} 35... fxg6 {[%clk 0:00:39.2]} 36. Qxg6
{[%clk 0:01:30.2]} 36... R8c6 {[%clk 0:00:39.8]} 37. Ng5 {[%clk 0:01:26.9]} 1-0